bitfinex/quotes_SOLUSD_20240808
["timestamp","ask_amount","ask_price","bid_price","bid_amount"]
[1723146785486,20.0,156.36,156.24,7.874]
[1723146785702,45.0,156.35,156.23,16.0015]
[1723146785902,20.0,156.34,156.23,16.0015]
[1723146786104,45.0,156.33,156.23,16.0015]
[1723146786314,20.0,156.32,156.23,16.0015]
[1723146786906,20.0,156.32,156.23,22.4022]
[1723146787086,20.0,156.32,156.24,6.4003]
[1723146787486,20.0,156.36,156.23,22.4021]
[1723146787708,45.0,156.35,156.23,22.4021]
[1723146787883,31.53385237,156.34,156.24,6.4002]
[1723146788087,20.0,156.34,156.24,6.4002]
[1723146788283,20.0,156.34,156.23,22.4022]
[1723146788507,20.0,156.34,156.23,16.0015]
[1723146788709,45.0,156.33,156.23,16.0015]
[1723146788908,20.0,156.32,156.22,6.4011]
[1723146789078,20.0,156.32,156.21,26.7615]
[1723146789507,20.0,156.32,156.22,6.4011]
[1723146789812,20.0,156.32,156.23,6.4007]
[1723146790383,20.0,156.32,156.25,6.3999]
[1723146790613,20.0,156.32,156.22,51.4726]
[1723146790906,20.0,156.32,156.23,6.4007]
[1723146791396,20.0,156.32,156.22,22.4038]
[1723146791593,20.0,156.32,156.22,16.0026]
[1723146791912,21.0051,156.31,156.2,8.522]
[1723146792215,28.2732,156.3,156.22,6.401]
[1723146792420,28.2732,156.3,156.21,16.0036]
[1723146792587,28.2732,156.3,156.23,6.4005]
[1723146793713,20.0,156.3,156.23,6.4005]
[1723146794518,20.0,156.3,156.22,6.4011]
[1723146795017,20.0,156.3,156.21,16.0036]
[1723146796024,20.0,156.3,156.21,22.4052]
[1723146796400,20.0,156.3,156.22,6.4011]
[1723146797591,20.0,156.3,156.23,16.0016]
[1723146797792,2.52501204,156.31,156.24,45.0]
[1723146798001,8.2732,156.34,156.24,45.0]
[1723146798002,8.2732,156.34,156.26,6.3992]
[1723146798201,10.90330223,156.34,156.26,6.3992]
[1723146799438,27.57,156.29,156.25,22.399]
[1723146799619,10.90330223,156.34,156.22,24.4178]
[1723146799928,20.0,156.28,156.22,24.4178]
[1723146800142,20.0,156.32,156.24,22.4008]
[1723146800307,20.0,156.33,156.2,22.406]
[1723146800515,56.53462462,156.32,156.2,22.406]
[1723146800707,21.0051,156.3,156.18,8.4152]
[1723146800910,76.53658088,156.29,156.18,8.4152]
[1723146801114,65.0,156.29,156.19,6.4021]
[1723146801509,65.0,156.29,156.2,6.402]
[1723146801718,65.0,156.29,156.19,22.408]
[1723146802432,65.0,156.29,156.18,14.8179]
[1723146802630,11.53707527,156.28,156.18,6.4027]
[1723146802831,20.0,156.27,156.18,6.4027]
[1723146803511,20.0,156.27,156.19,6.4024]
[1723146803836,20.0,156.28,156.18,6.4028]
[1723146804032,20.0,156.28,156.19,6.4023]
[1723146804433,20.0,156.28,156.18,6.4027]
[1723146805038,20.0,156.28,156.19,6.4024]
[1723146807124,20.0,156.28,156.18,22.4095]
[1723146807529,7.8042,156.27,156.17,6.4032]
[1723146807735,20.0,156.26,156.17,6.4032]
[1723146809747,20.0,156.26,156.18,6.4027]
[1723146810347,20.0,156.26,156.14,8.0128]
[1723146810348,20.0,156.26,156.19,6.4024]
[1723146810845,20.0,156.26,156.18,6.4027]
[1723146812115,20.0,156.26,156.17,22.4107]
[1723146812428,20.0,156.26,156.18,6.4027]
[1723146813139,79.55581672,156.25,156.13,6.4048]
[1723146813310,68.016,156.25,156.13,6.4048]
[1723146813515,31.54040821,156.24,156.13,6.4048]
[1723146813716,45.0,156.23,156.11,16.0137]
[1723146813948,7.8347,156.21,156.11,22.4191]
[1723146814116,7.8347,156.21,156.12,6.4052]
[1723146814310,20.0,156.2,156.12,6.4052]
[1723146815555,20.0,156.2,156.13,6.4048]
[1723146816048,20.0,156.2,156.13,16.0119]
[1723146816216,20.0,156.2,156.16,6.4036]
[1723146816417,27.8746,156.25,156.18,6.4027]
[1723146816630,27.8746,156.25,156.2,6.402]
[1723146816828,22.40281495,156.25,156.2,6.402]
[1723146817018,19.816,156.25,156.2,6.402]
[1723146817217,19.816,156.25,156.21,35.44]
[1723146817440,19.816,156.25,156.21,41.8415]
[1723146817784,28.2252,156.29,156.21,41.8415]
[1723146818666,28.2252,156.29,156.22,35.44]
[1723146818815,27.6134,156.33,156.23,1.27982193]
[1723146819020,19.6107,156.33,156.27,6.399]
[1723146819913,27.6134,156.37,156.26,6.3992]
[1723146820133,11.53208634,156.36,156.26,6.3992]
[1723146820448,30.22494159,156.37,156.27,51.399]
[1723146820652,31.53170567,156.36,156.27,51.399]
[1723146820821,30.22494159,156.37,156.28,6.3985]
[1723146821553,30.22494159,156.37,156.29,35.44]
[1723146822062,30.22494159,156.37,156.28,6.3985]
[1723146822244,20.0,156.36,156.28,6.3985]
[1723146822439,20.0,156.36,156.28,41.8385]
[1723146822970,20.0,156.36,156.28,35.44]
[1723146823663,20.0,156.36,156.27,67.3964]
[1723146824537,20.0,156.36,156.27,35.44]
[1723146824753,20.0,156.36,156.26,6.3995]
[1723146825069,20.0,156.36,156.25,14.9604]
[1723146825229,20.0,156.36,156.26,51.3994]
[1723146825432,20.0,156.36,156.26,6.3994]
[1723146827472,20.0,156.36,156.26,41.8394]
[1723146827639,20.0,156.36,156.25,8.5606]
[1723146828170,20.0,156.36,156.27,6.3991]
[1723146828859,20.0,156.36,156.28,6.3986]
[1723146829080,20.0,156.36,156.27,6.3991]
[1723146829785,20.0,156.36,156.28,6.3985]
[1723146831446,20.0,156.36,156.27,33.939]
[1723146831865,20.0,156.36,156.28,6.3986]
[1723146832373,20.0,156.36,156.27,27.54]
[1723146832574,20.0,156.36,156.27,33.9391]
[1723146832876,20.0,156.36,156.27,6.399]
[1723146833370,20.0,156.36,156.26,49.9379]
[1723146833881,20.0,156.36,156.27,6.399]
[1723146834053,20.0,156.36,156.27,33.939]
[1723146835772,20.0,156.36,156.25,0.3886]
[1723146835977,20.0,156.36,156.25,6.7885]
[1723146836189,20.0,156.36,156.26,33.9393]
[1723146836682,20.0,156.36,156.27,6.3989]
[1723146836847,0.8156369,156.4,156.31,15.9935]
[1723146837054,0.8156369,156.4,156.32,7.67608189]
[1723146837462,0.8156369,156.4,156.32,6.397]
[1723146839064,3.43398295,156.4,156.32,6.397]
[1723146839456,3.43398295,156.4,156.33,6.3966]
[1723146839788,3.43398295,156.4,156.34,6.3962]
[1723146840291,3.43398295,156.4,156.35,6.3958]
[1723146840577,3.43398295,156.4,156.34,6.3962]
[1723146841077,3.43398295,156.4,156.35,6.3958]
[1723146841676,3.43398295,156.4,156.34,6.3962]
[1723146842173,3.43398295,156.4,156.33,15.9914]
[1723146842174,0.8156369,156.4,156.33,15.9914]
[1723146842369,0.8156369,156.4,156.34,45.0]
[1723146842576,0.8156369,156.4,156.35,6.3958]
[1723146844064,0.8156369,156.4,156.34,51.3962]
[1723146844259,0.8156369,156.4,156.35,6.3958]
[1723146844664,0.8156369,156.4,156.36,6.3953]
[1723146844865,0.8156369,156.4,156.35,22.3851]
[1723146845369,0.8156369,156.4,156.36,27.54]
[1723146845577,0.8156369,156.4,156.35,49.9251]
[1723146846365,0.8156369,156.4,156.35,15.9893]
[1723146847076,0.8156369,156.4,156.33,33.9366]
[1723146847259,0.8156369,156.4,156.34,6.3962]
[1723146850760,0.8156369,156.4,156.33,22.3876]
[1723146851085,0.8156369,156.4,156.34,6.3962]
[1723146852173,0.8156369,156.4,156.34,6.7848]
[1723146853379,0.8156369,156.4,156.35,6.3958]
[1723146853679,0.8156369,156.4,156.34,6.7848]
[1723146854685,0.8156369,156.4,156.35,6.3958]
[1723146854981,0.8156369,156.4,156.34,6.7847]
[1723146856279,0.8156369,156.4,156.34,34.3047]
[1723146856466,0.8156369,156.4,156.35,6.3957]
[1723146856870,0.8156369,156.4,156.34,34.3047]
[1723146857071,0.8156369,156.4,156.34,0.3886]
[1723146857581,0.8156369,156.4,156.35,15.989]
[1723146857776,0.8156369,156.4,156.36,6.3952]
[1723146859477,0.8156369,156.4,156.37,33.9149]
[1723146859781,0.8156369,156.4,156.37,6.3949]
[1723146861186,0.8156369,156.4,156.36,27.52]
[1723146861376,0.8156369,156.4,156.3,31.9878]
[1723146861377,0.8156369,156.4,156.3,6.3978]
[1723146861682,0.8156369,156.4,156.27,31.9946]
[1723146861683,0.8156369,156.4,156.32,27.52]
[1723146861873,0.8156369,156.4,156.31,33.9174]
[1723146862081,0.8156369,156.4,156.36,27.52]
[1723146862386,0.8156369,156.4,156.38,27.52]
[1723146862601,0.8156369,156.4,156.37,43.5069]
[1723146862762,0.8156369,156.4,156.37,15.9869]
[1723146863066,0.8156369,156.4,156.36,27.52]
[1723146863272,0.8156369,156.4,156.31,15.9934]
[1723146863475,0.8156369,156.4,156.33,33.9164]
[1723146863680,0.8156369,156.4,156.31,15.9934]
[1723146863681,0.8156369,156.4,156.34,33.9162]
[1723146863980,0.8156369,156.4,156.34,6.3962]
[1723146864485,0.8156369,156.4,156.34,33.9162]
[1723146866257,0.8156369,156.4,156.35,6.3958]
[1723146868184,0.8156369,156.4,156.36,6.3954]
[1723146873482,0.8156369,156.4,156.36,6.3953]
[1723146873865,0.8156369,156.4,156.35,22.3849]
[1723146874070,0.8156369,156.4,156.33,6.3966]
[1723146874267,0.8156369,156.4,156.36,0.3886]
[1723146880498,20.6109,156.39,156.36,0.3886]
[1723146881097,28.3532,156.38,156.36,0.3886]
[1723146883690,20.0,156.38,156.36,0.3886]
[1723146888269,45.0,156.37,156.36,0.3886]
[1723146888475,65.0,156.37,156.36,0.3886]
[1723146889273,20.0,156.37,156.36,0.3886]
[1723146890500,65.0,156.37,156.36,0.3886]
[1723146891296,20.0,156.37,156.36,0.3886]
[1723146892189,65.0,156.37,156.36,0.3886]
[1723146892393,20.0,156.37,156.36,0.3886]
[1723146900335,2.57538725,156.38,156.36,0.3886]
[1723146900487,3.36386035,156.4,156.36,0.3886]
[1723146900985,11.78976035,156.4,156.28,47.8492]
[1723146901182,18.4430664,156.39,156.28,70.2444]
[1723146901405,18.4430664,156.39,156.29,6.398]
[1723146901608,18.4430664,156.39,156.3,6.3978]
[1723146901806,20.0,156.38,156.29,6.3982]
[1723146902021,20.0,156.38,156.28,42.7043]
[1723146902298,23.7909,156.36,156.24,20.3572]
[1723146902791,7.8095,156.34,156.23,6.4006]
[1723146902994,65.0,156.33,156.23,43.5413]
[1723146903291,20.0,156.33,156.25,6.3998]
[1723146903493,20.0,156.33,156.24,6.4003]
[1723146904237,20.0,156.33,156.25,6.3999]
[1723146904534,20.0,156.33,156.23,43.5413]
[1723146904840,45.0,156.32,156.23,16.0013]
[1723146905011,20.0,156.31,156.23,22.402]
[1723146905930,20.0,156.31,156.2,20.3572]
[1723146905931,66.1732,156.3,156.2,20.3572]
[1723146906112,20.0,156.29,156.19,6.4023]
[1723146906423,20.0,156.29,156.18,8.2775]
[1723146906424,8.2892,156.27,156.18,22.4091]
[1723146906609,20.0,156.26,156.18,22.4091]
[1723146907317,20.0,156.26,156.18,16.0063]
[1723146908010,20.0,156.26,156.15,6.4037]
[1723146908011,45.0,156.25,156.15,6.4037]
[1723146908216,20.33,156.23,156.14,22.415]
[1723146908422,20.0,156.22,156.14,22.415]
[1723146908824,20.0,156.22,156.12,6.4052]
[1723146909133,45.0,156.21,156.11,43.554]
[1723146909311,20.0,156.2,156.14,6.4041]
[1723146909712,20.0,156.22,156.14,6.4041]
[1723146909913,22.53966533,156.22,156.11,6.4056]
[1723146910114,22.53966533,156.22,156.12,6.4051]
[1723146910324,45.0,156.21,156.12,6.4051]
[1723146910618,20.0,156.2,156.12,6.4051]
[1723146911234,20.0,156.2,156.13,6.4048]
[1723146911436,20.0,156.2,156.12,6.4052]
[1723146911745,28.2454,156.2,156.1,16.015]
[1723146911933,45.0,156.19,156.1,16.015]
[1723146912136,20.0,156.18,156.1,22.4211]
[1723146912431,20.0,156.18,156.1,16.015]
[1723146912642,20.0,156.18,156.1,22.4208]
[1723146912847,20.0,156.18,156.11,27.54]
[1723146913139,8.2454,156.2,156.11,27.54]
[1723146913140,20.0,156.19,156.11,27.54]
[1723146913442,20.0,156.19,156.12,6.4052]
[1723146913943,20.0,156.19,156.11,6.4056]
[1723146914151,8.2454,156.2,156.1,32.0298]
[1723146914444,8.2454,156.2,156.13,33.9448]
[1723146914613,8.2454,156.2,156.14,6.4044]
[1723146914941,8.2454,156.2,156.12,6.4052]
[1723146916430,20.0,156.22,156.14,1.28068966]
[1723146916633,20.0,156.22,156.14,27.54]
[1723146916934,20.33,156.23,156.18,27.54]
[1723146917159,2.5378605,156.23,156.18,27.54]
[1723146917437,21.0422,156.27,156.19,27.54]
[1723146917944,21.0422,156.27,156.19,33.942]
[1723146918245,21.0422,156.27,156.2,27.54]
[1723146918425,21.0422,156.27,156.19,43.5454]
[1723146918626,21.0422,156.27,156.18,27.54]
[1723146918935,21.0422,156.27,156.17,33.9431]
[1723146919448,21.0422,156.27,156.17,6.4031]
[1723146919632,45.0,156.26,156.17,6.4031]
[1723146919829,65.0,156.26,156.16,16.0087]
[1723146920037,65.0,156.26,156.15,6.4037]
[1723146920614,65.0,156.26,156.15,16.0092]
[1723146920818,65.0,156.26,156.17,6.4029]
[1723146921451,65.0,156.26,156.15,16.0092]
[1723146921648,65.0,156.26,156.14,6.4042]
[1723146922134,65.0,156.26,156.15,6.404]
[1723146922457,65.0,156.26,156.14,22.415]
[1723146922617,65.0,156.26,156.1,7.9375]
[1723146922618,7.8958,156.25,156.1,7.9375]
[1723146922932,6.419,156.23,156.1,23.9521]
[1723146923129,65.0,156.22,156.1,23.9521]
[1723146923334,65.0,156.22,156.12,6.405]
[1723146923532,65.0,156.22,156.1,16.0146]
[1723146923737,65.0,156.22,156.08,6.4066]
[1723146923738,6.419,156.2,156.08,6.4066]
[1723146923940,71.419,156.19,156.09,6.4064]
[1723146925323,65.0,156.19,156.09,6.4064]
[1723146926123,65.0,156.19,156.07,16.0179]
[1723146926124,19.9173,156.18,156.08,6.4068]
[1723146926331,65.0,156.17,156.07,22.4252]
[1723146926642,65.0,156.17,156.05,6.4081]
[1723146926945,8.0123,156.16,156.05,6.4081]
[1723146927134,65.0,156.15,156.05,6.4081]
[1723146927337,65.0,156.15,156.04,22.71141231]
[1723146927650,65.0,156.15,156.04,29.11981231]
[1723146927829,71.419,156.15,156.04,29.11981231]
[1723146928549,19.6318,156.14,156.04,6.69021231]
[1723146928765,65.0,156.13,156.04,6.69021231]
[1723146929264,20.0,156.13,156.04,6.69021231]
[1723146929761,45.0,156.12,156.04,6.69021231]
[1723146929962,20.0,156.11,156.04,6.69021231]
[1723146930359,20.0,156.11,156.03,6.4089]
[1723146930656,20.0,156.11,156.02,6.4093]
[1723146930832,20.0,156.11,156.04,6.4083]
[1723146931035,20.0,156.13,156.04,6.4083]
[1723146931230,22.54691463,156.13,156.05,6.4081]
[1723146931428,2.54691463,156.13,156.06,6.4077]
[1723146931629,19.6318,156.14,156.07,6.4072]
[1723146931833,19.6318,156.14,156.07,33.9472]
[1723146932349,19.6318,156.14,156.08,6.4069]
[1723146932931,19.6318,156.14,156.09,6.4064]
[1723146933264,8.0123,156.16,156.1,6.406]
[1723146933862,2.63928575,156.16,156.1,6.4061]
[1723146934024,20.251,156.18,156.09,49.9623]
[1723146934238,20.251,156.18,156.1,6.4059]
[1723146934569,20.251,156.18,156.1,27.54]
[1723146934876,20.251,156.18,156.11,89.83452878]
[1723146935167,20.251,156.18,156.11,61.0138]
[1723146935340,20.251,156.18,156.11,88.5538]
[1723146935861,20.251,156.18,156.11,94.9594]
[1723146936068,20.251,156.18,156.11,67.4194]
[1723146936360,20.0,156.17,156.11,67.4194]
[1723146936578,20.0,156.17,156.12,33.9451]
[1723146936869,20.0,156.17,156.13,6.4048]
[1723146937035,20.0,156.17,156.11,67.4191]
[1723146937652,20.0,156.17,156.11,61.0138]
[1723146937849,20.0,156.17,156.12,33.9452]
[1723146938054,20.0,156.17,156.12,6.4052]
[1723146939865,20.0,156.17,156.12,6.4052]
[1723146940565,20.0,156.17,156.11,67.4194]
[1723146940751,20.0,156.17,156.11,61.0138]
[1723146940961,20.0,156.17,156.12,6.4052]
[1723146942067,20.0,156.17,156.11,61.0138]
[1723146942370,20.0,156.17,156.11,16.0138]
[1723146943081,20.0,156.17,156.03,39.806]
[1723146943282,20.0,156.17,156.11,27.54]
[1723146943448,20.0,156.17,156.12,6.4052]
[1723146943750,20.0,156.17,156.11,16.0138]
[1723146945259,20.0,156.17,156.11,22.4192]
[1723146945442,20.0,156.17,156.12,6.4051]
[1723146946560,20.0,156.17,156.13,6.4048]
[1723146947148,20.0,156.17,156.12,6.4051]
[1723146947355,20.0,156.17,156.11,22.4194]
[1723146948780,20.0,156.17,156.1,6.406]
[1723146949359,20.0,156.17,156.11,6.4055]
[1723146949977,20.0,156.17,156.12,6.4052]
[1723146950656,8.5523,156.2,156.16,6.4034]
[1723146950875,21.2236,156.21,156.16,6.4034]
[1723146951253,21.2236,156.21,156.16,22.4117]
[1723146951450,21.2236,156.21,156.15,6.404]
[1723146951673,21.2236,156.21,156.13,22.4161]
[1723146951866,21.2236,156.21,156.14,6.4044]
[1723146952260,21.2236,156.21,156.15,6.4039]
[1723146953074,20.0,156.2,156.15,6.4039]
[1723146953451,20.0,156.2,156.14,6.4043]
[1723146954777,20.0,156.2,156.13,22.4163]
[1723146955084,20.0,156.2,156.1,51.6685]
[1723146955380,20.0,156.2,156.13,6.4048]
[1723146955578,20.0,156.2,156.15,6.4038]
[1723146955888,20.0,156.2,156.16,6.4034]
[1723146956380,20.0,156.2,156.14,16.0109]
[1723146956556,20.0,156.2,156.15,6.4037]
[1723146956958,20.0,156.2,156.16,6.4036]
[1723146957484,20.0,156.2,156.15,6.404]
[1723146957883,20.0,156.2,156.14,22.4153]
[1723146960686,20.4835,156.25,156.21,6.4016]
[1723146961188,2.6298981,156.27,156.22,1.28002116]
[1723146961372,27.5209,156.33,156.27,6.399]
[1723146961576,27.5209,156.33,156.28,1.27960856]
[1723146961771,27.5209,156.33,156.27,6.3991]
[1723146961979,27.5209,156.33,156.26,22.3979]
[1723146962176,27.5209,156.33,156.23,34.9117]
[1723146962380,30.16264604,156.33,156.21,25.3115]
[1723146962585,30.16264604,156.33,156.21,6.4015]
[1723146962789,20.0,156.32,156.22,6.401]
[1723146962985,20.0,156.32,156.23,6.4007]
[1723146963287,20.0,156.32,156.18,16.007]
[1723146963489,20.0,156.32,156.18,34.917]
[1723146963787,20.0,156.32,156.2,16.0046]
[1723146964166,20.0,156.32,156.23,6.4008]
[1723146964374,21.2819,156.31,156.17,16.0077]
[1723146964670,8.0426,156.29,156.14,16.0107]
[1723146964879,20.0,156.28,156.16,27.57]
[1723146965069,20.0,156.28,156.19,6.4021]
[1723146965274,20.0,156.28,156.2,6.4019]
[1723146965588,3.2,156.27,156.15,16.0101]
[1723146965892,19.3889,156.26,156.15,22.4141]
[1723146966064,20.0,156.25,156.13,6.4048]
[1723146966571,7.9682,156.24,156.13,6.4048]
[1723146966867,20.0,156.23,156.14,43.5805]
[1723146967192,20.0,156.23,156.17,6.4029]
[1723146967378,20.0,156.23,156.16,43.5784]
[1723146967578,20.0,156.23,156.17,1.28024396]
[1723146967786,20.0,156.23,156.17,72.57]
[1723146967977,20.0,156.23,156.18,6.4027]
[1723146968376,20.0,156.23,156.17,78.9731]
[1723146968570,20.0,156.23,156.18,6.4028]
[1723146969181,20.0,156.23,156.17,78.9732]
[1723146969392,20.0,156.23,156.18,6.4028]
[1723146969774,20.0,156.23,156.16,22.412]
[1723146969970,20.0,156.23,156.16,16.0084]
[1723146971183,20.0,156.23,156.13,6.4045]
[1723146972682,20.0,156.23,156.14,6.4044]
[1723146974570,20.0,156.23,156.17,6.4028]
[1723146976682,20.0,156.23,156.18,6.4028]
[1723146977201,20.0,156.23,156.19,6.4023]
[1723146977502,20.0,156.25,156.18,16.0063]
[1723146977797,20.0,156.25,156.16,6.4035]
[1723146978200,20.0,156.25,156.15,22.4139]
[1723146978398,20.0,156.25,156.18,0.385]
[1723146980281,45.0,156.24,156.18,0.385]
[1723146980509,20.0,156.23,156.18,0.385]
[1723146982003,8.3479,156.22,156.18,0.385]
[1723146983894,20.0,156.21,156.18,0.385]
[1723146984092,20.707,156.2,156.1,6.406]
[1723146984429,65.0,156.19,156.1,22.4203]
[1723146984780,65.0,156.19,156.1,16.0143]
[1723146985196,65.0,156.19,156.1,22.42]
[1723146985439,65.0,156.19,156.1,16.0143]
[1723146986200,65.0,156.19,156.1,22.4204]
[1723146986403,65.0,156.19,156.06,16.0184]
[1723146986721,27.5207,156.18,156.07,6.4073]
[1723146987018,20.0,156.17,156.06,22.426]
[1723146987195,20.0,156.17,156.07,6.4073]
[1723146987390,20.0,156.17,156.1,6.4058]
[1723146987696,20.0,156.17,156.08,16.0169]
[1723146988217,20.0,156.17,156.11,6.4054]
[1723146988429,20.0,156.17,156.07,27.57]
[1723146988727,20.0,156.17,156.08,6.4069]
[1723146989297,20.0,156.17,156.07,22.425]
[1723146989611,20.0,156.17,156.08,6.4069]
[1723146989796,20.0,156.17,156.07,16.0178]
[1723146991113,20.0,156.17,156.04,317.5111]
[1723146991114,20.0,156.17,156.04,273.9211]
[1723146991417,22.60966652,156.17,156.05,6.4079]
[1723146991795,22.60966652,156.17,156.06,6.4076]
[1723146993417,22.60966652,156.17,156.07,6.4073]
[1723146993805,22.60966652,156.17,156.08,6.4069]
[1723146994114,22.60966652,156.17,156.06,16.0188]
[1723146994115,22.60966652,156.17,156.07,6.4073]
[1723146997830,22.60966652,156.17,156.08,6.4069]
[1723146998215,22.60966652,156.17,156.07,6.4072]
[1723146999022,22.60966652,156.17,156.08,43.5869]
[1723146999416,22.60966652,156.17,156.09,6.4062]
[1723146999945,2.60966652,156.17,156.09,27.57]
[1723147000107,19.7468,156.18,156.12,6.4051]
[1723147000308,19.7468,156.18,156.12,22.4181]
[1723147001012,19.7468,156.18,156.12,16.013]
[1723147001212,19.7468,156.18,156.12,22.4181]
[1723147001418,19.7468,156.18,156.12,16.013]
[1723147001632,20.0,156.17,156.12,22.4183]
[1723147001926,20.0,156.17,156.13,6.4046]
[1723147002427,8.2115,156.21,156.14,43.5807]
[1723147002933,8.2115,156.21,156.13,33.9746]
[1723147003109,8.2115,156.21,156.12,33.9752]
[1723147003511,8.2115,156.21,156.14,27.57]
[1723147003718,20.0,156.2,156.14,33.9741]
[1723147003923,20.0,156.2,156.15,6.404]
[1723147004121,20.0,156.2,156.13,43.5817]
[1723147005206,20.0,156.2,156.13,16.0117]
[1723147005405,20.0,156.2,156.13,22.4165]
[1723147006214,20.0,156.2,156.14,6.4044]
[1723147006737,19.4488,156.22,156.17,27.57]
[1723147007038,7.895,156.25,156.17,27.57]
[1723147007232,7.895,156.25,156.17,43.5777]
[1723147007542,7.895,156.25,156.17,16.0077]
[1723147008109,7.895,156.25,156.17,22.4109]
[1723147008548,7.895,156.25,156.13,16.012]
[1723147008839,7.895,156.25,156.13,22.4166]
[1723147009334,20.0,156.24,156.13,16.012]
[1723147009936,20.1472,156.23,156.12,6.4051]
[1723147010124,20.0,156.22,156.11,6.4056]
[1723147011232,20.0,156.22,156.12,6.4053]
[1723147011427,20.0,156.22,156.11,6.4056]
[1723147012112,22.54070971,156.22,156.1,22.4208]
[1723147012611,7.8901,156.21,156.1,22.4208]
[1723147012812,20.0,156.2,156.1,22.4208]
[1723147013309,20.0,156.2,156.1,16.0147]
[1723147013513,19.5147,156.19,156.1,16.0147]
[1723147013717,20.0,156.18,156.1,16.0147]
[1723147013923,20.0,156.18,156.1,22.4207]
[1723147015527,20.0,156.18,156.08,6.4066]
[1723147015825,20.0,156.18,156.07,273.9178]
[1723147016037,20.0,156.18,156.09,6.4064]
[1723147017429,20.0,156.18,156.07,16.0178]
[1723147017641,22.60431942,156.18,156.07,16.0178]
[1723147017940,20.5955,156.16,156.07,22.4251]
[1723147018322,20.0,156.15,156.07,22.4251]
[1723147019035,20.0,156.15,156.09,6.4061]
[1723147019438,20.0,156.15,156.1,6.4061]
[1723147019641,20.0,156.15,156.11,1.28096861]
[1723147019842,20.0,156.15,156.11,7.68636861]
[1723147020040,20.0,156.15,156.11,6.4054]
[1723147021132,20.0,156.15,156.09,16.0158]
[1723147021739,20.0,156.15,156.09,43.5858]
[1723147022065,20.0,156.15,156.11,16.014]
[1723147022561,20.0,156.15,156.11,43.584]
[1723147022755,2.60431942,156.18,156.12,6.405]
[1723147022979,20.0,156.19,156.12,6.405]
[1723147025043,22.53171557,156.19,156.12,6.405]
[1723147025472,2.53171557,156.19,156.13,6.4047]
[1723147025639,20.9646,156.2,156.13,6.4047]
[1723147025840,20.9646,156.2,156.12,6.4051]
[1723147026435,20.9646,156.2,156.13,16.0119]
[1723147026838,20.0,156.19,156.13,22.4166]
[1723147027063,20.9646,156.2,156.14,6.4044]
[1723147027740,20.9646,156.2,156.13,16.0119]
[1723147028261,20.0,156.19,156.13,16.0119]
[1723147029062,20.0,156.19,156.12,6.4052]
[1723147029371,20.0,156.19,156.13,6.4048]
[1723147029572,20.0,156.19,156.12,43.5831]
[1723147029788,20.0,156.19,156.14,6.4044]
[1723147030258,20.0,156.19,156.13,6.4047]
[1723147030454,20.0,156.19,156.13,6.4049]
[1723147032160,20.0,156.19,156.12,16.0131]